bitfinex-derivatives/quotes_BTCF0:USTF0_20250827
["timestamp","ask_amount","ask_price","bid_price","bid_amount"]
[1756313883398,0.06673,112170.0,112160.0,1.81414318]
[1756313884998,0.08658,112170.0,112160.0,1.81410318]
[1756313885295,0.14424,112170.0,112160.0,1.81410318]
[1756313886000,0.14424,112170.0,112160.0,0.97810318]
[1756313886298,0.14424,112170.0,112160.0,1.81410318]
[1756313886800,0.14424,112170.0,112160.0,0.97810318]
[1756313887098,0.14424,112170.0,112160.0,1.81406318]
[1756313887397,0.06673,112170.0,112160.0,1.81406318]
[1756313887598,0.04453,112170.0,112160.0,1.81406318]
[1756313888099,0.07895,112170.0,112160.0,1.81406318]
[1756313888696,0.10219,112170.0,112160.0,1.81406318]
[1756313888895,0.07895,112170.0,112160.0,1.81406318]
[1756313889705,0.04453,112170.0,112160.0,1.81406318]
[1756313890092,0.001,112170.0,112160.0,2.25097651]
[1756313890399,0.001,112170.0,112160.0,2.60097651]
[1756313891302,0.001,112170.0,112160.0,2.85097651]
[1756313891502,0.001,112170.0,112160.0,2.50097651]
[1756313891694,0.001,112170.0,112160.0,2.86097651]
[1756313892303,0.02805,112180.0,112170.0,0.0891349]
[1756313892604,0.02795,112180.0,112170.0,1.27684823]
[1756313892798,0.02805,112190.0,112180.0,0.089127]
[1756313892991,0.11366586,112200.0,112190.0,0.089119]
[1756313893196,0.11366586,112200.0,112190.0,0.88683233]
[1756313893197,0.13331586,112200.0,112190.0,0.88683233]
[1756313893507,0.16126586,112200.0,112190.0,0.88683233]
[1756313894505,0.16126586,112200.0,112190.0,1.72259233]
[1756313895505,0.16226586,112200.0,112190.0,1.72259233]
[1756313895701,0.16226586,112200.0,112190.0,1.72251233]
[1756313897000,0.16326586,112200.0,112190.0,1.72251233]
[1756313897300,0.16326586,112200.0,112190.0,0.88683233]
[1756313897506,0.16326586,112200.0,112190.0,1.285559]
[1756313897708,0.16326586,112200.0,112190.0,1.72247233]
[1756313898207,0.16326586,112200.0,112190.0,0.88683233]
[1756313898409,0.16326586,112200.0,112190.0,1.72243233]
[1756313901207,0.16326586,112200.0,112190.0,0.88683233]
[1756313901398,0.25237696,112200.0,112190.0,1.285399]
[1756313901604,0.25237696,112200.0,112190.0,1.72231233]
[1756313902010,0.25237696,112200.0,112190.0,1.285399]
[1756313902210,0.16326586,112200.0,112190.0,1.72231233]
[1756313903516,0.16326586,112200.0,112190.0,0.88683233]
[1756313903816,0.16326586,112200.0,112190.0,1.72227233]
[1756313904116,0.16326586,112200.0,112190.0,1.36147233]
[1756313904520,0.16326586,112200.0,112190.0,0.52603233]
[1756313904719,0.16326586,112200.0,112190.0,1.36143233]
[1756313905419,0.16326586,112200.0,112190.0,0.089119]
[1756313905718,0.16326586,112200.0,112190.0,1.36139233]
[1756313906713,0.16326586,112200.0,112190.0,1.36135233]
[1756313906915,0.52406586,112200.0,112190.0,0.52603233]
[1756313907111,0.52406586,112200.0,112190.0,1.36135233]
[1756313907314,0.52406586,112200.0,112190.0,1.36131233]
[1756313907614,0.52406586,112200.0,112190.0,0.089119]
[1756313907615,0.61317696,112200.0,112190.0,0.089119]
[1756313907815,0.61317696,112200.0,112190.0,0.52603233]
[1756313908016,1.30009029,112200.0,112190.0,0.089119]
[1756313908416,1.327106,112200.0,112190.0,0.089119]
[1756313908620,0.89019267,112200.0,112190.0,0.089119]
[1756313909623,1.327106,112200.0,112190.0,0.089119]
[1756313910016,0.112259,112190.0,112180.0,0.52603443]
[1756313910326,0.233699,112190.0,112180.0,0.9243211]
[1756313910526,1.28141233,112190.0,112180.0,0.0891211]
[1756313910731,0.2058604,112180.0,112170.0,0.0891294]
[1756313911028,0.5945104,112180.0,112170.0,0.9242894]
[1756313912123,0.5945104,112180.0,112170.0,1.36120273]
[1756313912916,0.2357104,112180.0,112170.0,1.36120273]
[1756313913230,0.1122,112180.0,112170.0,1.72200273]
[1756313913423,0.14658,112180.0,112170.0,1.72200273]
[1756313914926,0.14658,112180.0,112170.0,1.36120273]
[1756313919831,0.14658,112180.0,112170.0,0.0891294]
[1756313920027,0.14658,112180.0,112170.0,1.36104273]
[1756313920633,0.235707,112180.0,112170.0,1.36104273]
[1756313922736,0.235707,112180.0,112170.0,0.9240894]
[1756313922934,0.596507,112180.0,112170.0,1.36100273]
[1756313923435,0.596507,112180.0,112170.0,0.52604273]
[1756313923635,0.596507,112180.0,112170.0,1.36096273]
[1756313923937,0.596507,112180.0,112170.0,0.52604273]
[1756313924138,0.14458,112170.0,112160.0,0.18038455]
[1756313924436,0.14458,112170.0,112160.0,1.45217788]
[1756313925137,0.02785,112170.0,112160.0,1.81297788]
[1756313925339,0.001,112170.0,112160.0,2.24989121]
[1756313928637,0.02885,112170.0,112160.0,2.24989121]
[1756313936144,0.02885,112170.0,112160.0,2.24961121]
[1756313936541,0.02885,112170.0,112160.0,1.41501121]
[1756313936737,0.02885,112170.0,112160.0,2.24953121]
[1756313937238,0.02885,112170.0,112160.0,1.81261788]
[1756313937636,0.02885,112170.0,112160.0,1.79256884]
[1756313937842,0.02885,112170.0,112160.0,2.22948217]
[1756313939936,0.1427,112170.0,112160.0,1.79248884]
[1756313940951,0.8426352,112170.0,112160.0,0.50811164]
[1756313941141,0.8426352,112170.0,112160.0,0.90559831]
[1756313941342,0.8426352,112170.0,112160.0,1.43165484]
[1756313942147,0.851778,112170.0,112160.0,0.59725484]
[1756313942352,0.851778,112170.0,112160.0,1.43165484]
[1756313942353,0.7626428,112170.0,112160.0,1.43165484]
[1756313942949,0.8517781,112170.0,112160.0,1.43165484]
[1756313943353,0.7626428,112170.0,112160.0,1.43165484]
[1756313944454,0.3927,112170.0,112160.0,1.43165484]
[1756313946956,0.36935591,112170.0,112160.0,1.43165484]
[1756313947156,0.40158591,112170.0,112160.0,1.43165484]
[1756313947559,0.3927,112170.0,112160.0,1.79245484]
[1756313948955,0.3927,112170.0,112160.0,0.59725484]
[1756313949150,0.3927,112170.0,112160.0,1.43145484]
[1756313950357,0.3927,112170.0,112160.0,1.79225484]
[1756313953063,0.4818352,112170.0,112160.0,0.95805484]
[1756313953265,0.4818352,112170.0,112160.0,1.43137484]
[1756313955062,0.3927,112170.0,112160.0,1.79217484]
[1756313955654,0.4818351,112170.0,112160.0,1.79217484]
[1756313955863,0.4818351,112170.0,112160.0,1.43137484]
[1756313957362,0.3927,112170.0,112160.0,1.43137484]
[1756313958970,0.4818352,112170.0,112160.0,0.99446151]
[1756313959166,0.4818352,112170.0,112160.0,1.43137484]
[1756313959361,0.3927,112170.0,112160.0,1.43137484]
[1756313960065,0.3927,112170.0,112160.0,0.59725484]
[1756313960261,0.3927,112170.0,112160.0,1.43113484]
[1756313961269,0.4818351,112170.0,112160.0,1.43113484]
[1756313961968,0.4818351,112170.0,112160.0,0.59725484]
[1756313962764,0.3927,112170.0,112160.0,0.59725484]
[1756313962962,0.4818351,112170.0,112160.0,0.59725484]
[1756313964173,0.3927,112170.0,112160.0,0.59725484]
[1756313965372,0.3927,112170.0,112160.0,0.81600535]
[1756313966367,0.3907,112170.0,112160.0,0.81759535]
[1756313966568,0.4798351,112170.0,112160.0,0.81759535]
[1756313966971,0.4798351,112170.0,112160.0,1.65223535]
[1756313967170,0.4908351,112170.0,112160.0,1.65223535]
[1756313967668,0.4017,112170.0,112160.0,2.01303535]
[1756313968070,0.4017,112170.0,112160.0,2.01403535]
[1756313968875,0.4908351,112170.0,112160.0,2.01403535]
[1756313969376,0.4908351,112170.0,112160.0,2.01395535]
[1756313970275,0.4017,112170.0,112160.0,2.01395535]
[1756313970679,0.011,112170.0,112160.0,2.93178727]
[1756313971376,0.01,112170.0,112160.0,2.93178727]
[1756313971877,0.01,112170.0,112160.0,2.92178727]
[1756313973381,0.01,112170.0,112160.0,2.81216863]
[1756313974481,0.01,112170.0,112160.0,3.10216863]
[1756313975379,0.01,112170.0,112160.0,2.26860863]
[1756313975582,0.01,112170.0,112160.0,3.10188863]
[1756313976277,0.01,112170.0,112160.0,3.10180863]
[1756313976679,0.01,112170.0,112160.0,2.07860863]
[1756313976882,0.01,112170.0,112160.0,3.36180863]
[1756313977983,0.01,112170.0,112160.0,2.52860863]
[1756313978278,0.01,112170.0,112160.0,3.34176863]
[1756313978782,0.01,112170.0,112160.0,1.97860863]
[1756313978982,0.01,112170.0,112160.0,2.83172863]
[1756313979183,0.01,112170.0,112160.0,3.19172863]
[1756313981080,0.02824,112180.0,112170.0,0.0891351]
[1756313981274,0.02814,112180.0,112170.0,2.08983366]
[1756313981786,0.02814,112180.0,112170.0,0.88687366]
[1756313981983,0.02814,112180.0,112170.0,2.03983366]
[1756313982187,0.02814,112180.0,112170.0,1.20687366]
[1756313982385,0.02814,112180.0,112170.0,2.02979366]
[1756313982589,0.04114,112180.0,112170.0,2.03079366]
[1756313982886,0.04314,112180.0,112170.0,2.03079366]
[1756313983581,0.04114,112180.0,112170.0,2.03071366]
[1756313983888,0.04014,112180.0,112170.0,2.03071366]
[1756313984081,0.04014,112180.0,112170.0,0.88787366]
[1756313984384,0.04014,112180.0,112170.0,2.10071366]
[1756313984582,0.04014,112180.0,112170.0,2.10067366]
[1756313987494,0.09651,112180.0,112170.0,1.2836151]
[1756313987694,0.09651,112180.0,112170.0,2.08055366]
[1756313988299,0.15389,112180.0,112170.0,1.72051366]
[1756313988795,0.15389,112180.0,112170.0,0.88787366]
[1756313989102,0.15389,112180.0,112170.0,1.72047366]
[1756313989603,0.15389,112180.0,112170.0,0.88787366]
[1756313989897,0.8538172,112180.0,112170.0,0.9226951]
[1756313990201,0.8538172,112180.0,112170.0,1.35963366]
[1756313991401,0.4930172,112180.0,112170.0,1.35963366]
[1756313991797,0.8538172,112180.0,112170.0,1.35963366]
[1756313993105,0.6038172,112180.0,112170.0,1.35963366]
[1756313993505,0.2430172,112180.0,112170.0,1.35963366]
[1756313993810,0.2430172,112180.0,112170.0,0.9226951]
[1756313994105,0.2430172,112180.0,112170.0,1.35963366]
[1756313996501,0.2430172,112180.0,112170.0,0.52707366]
[1756313996796,0.2430172,112180.0,112170.0,1.35939366]
[1756313997408,0.2430172,112180.0,112170.0,1.25025392]
[1756313997602,0.2430172,112180.0,112170.0,0.9224551]
[1756313997808,0.57081602,112180.0,112170.0,1.25025392]
[1756313998108,0.57081602,112180.0,112170.0,0.9224551]
[1756313998309,0.57081602,112180.0,112170.0,1.25025392]
[1756313998608,0.2430172,112180.0,112170.0,1.25025392]
[1756313998802,0.57081602,112180.0,112170.0,1.25025392]
[1756313999006,0.57081602,112180.0,112170.0,1.25013392]
[1756313999308,1.50941484,112180.0,112170.0,0.32879882]
[1756313999508,1.18161602,112180.0,112170.0,0.41793402]
[1756313999709,1.20871491,112180.0,112170.0,0.41793402]
[1756314000108,1.18161602,112180.0,112170.0,0.32879882]
[1756314000911,0.8538172,112180.0,112170.0,0.001]
[1756314001107,1.53651461,112180.0,112170.0,0.001]
[1756314001318,0.2318234,112160.0,112150.0,0.08938049]
[1756314001506,0.5926234,112160.0,112150.0,0.91364049]
[1756314001706,0.14268,112160.0,112150.0,1.35090566]
[1756314002103,0.14268,112160.0,112150.0,1.71170566]
[1756314002615,0.14268,112160.0,112150.0,1.71270566]
[1756314002812,0.14668,112160.0,112150.0,1.71270566]
[1756314004402,0.15468,112160.0,112150.0,1.71270566]
[1756314004716,0.15668,112160.0,112150.0,1.71170566]
[1756314007610,0.04166,112160.0,112150.0,2.30170566]
[1756314007909,0.014,112160.0,112150.0,2.73897083]
[1756314008106,0.04166,112160.0,112150.0,2.30170566]
[1756314008307,0.014,112160.0,112150.0,2.30170566]
[1756314008502,0.02776,112170.0,112160.0,0.089143]
[1756314008503,0.06651,112170.0,112160.0,0.089143]
[1756314008712,0.14268,112170.0,112160.0,1.35828817]
[1756314009207,0.14268,112170.0,112160.0,1.42952926]
[1756314009405,0.14268,112170.0,112160.0,0.95844926]
[1756314009618,0.5926151,112170.0,112160.0,0.99222409]
[1756314009922,0.231823,112160.0,112150.0,0.00013359]
[1756314010108,0.592623,112160.0,112150.0,0.08928459]
[1756314011408,1.02988817,112160.0,112150.0,0.00013359]
[1756314011614,0.842623,112160.0,112150.0,0.00013359]
[1756314011808,0.842623,112160.0,112150.0,0.08928459]
[1756314012014,0.843623,112160.0,112150.0,0.08928459]
[1756314012312,0.850623,112160.0,112150.0,0.00013359]
[1756314012505,0.850623,112160.0,112150.0,0.08928459]
[1756314012708,0.850623,112160.0,112150.0,0.52654976]
[1756314013105,0.849623,112160.0,112150.0,0.43739876]
[1756314013305,0.852623,112160.0,112150.0,0.00013359]
[1756314013510,1.28988817,112160.0,112150.0,0.00013359]
[1756314013713,1.28288817,112160.0,112150.0,0.00013359]
[1756314014015,0.1750389,112140.0,112130.0,1.35824657]
[1756314014213,0.5358389,112140.0,112130.0,1.67927657]
[1756314014917,0.2085435,112130.0,112120.0,0.00294]
[1756314015108,0.2085435,112130.0,112120.0,0.52937997]
[1756314015309,0.57818976,112130.0,112120.0,0.52937997]
[1756314015502,0.24069976,112130.0,112120.0,0.52937997]
[1756314015903,0.60149976,112130.0,112120.0,0.52937997]
[1756314016107,0.60149976,112130.0,112120.0,0.0921148]
[1756314016306,0.2318548,112120.0,112110.0,0.0921193]
[1756314016513,0.5926548,112120.0,112110.0,1.36106447]
[1756314016702,0.5926548,112120.0,112110.0,0.52938447]
[1756314016905,0.0891828,112110.0,112100.0,0.16026726]
[1756314017210,0.1693087,112090.0,112080.0,0.0001]
[1756314017410,0.08011,112080.0,112070.0,0.0921546]
[1756314017613,0.50348,112080.0,112070.0,0.60049682]
[1756314017909,0.50348,112080.0,112070.0,0.00181]
[1756314017910,0.5926866,112080.0,112070.0,0.00181]
[1756314018126,0.5926866,112080.0,112070.0,0.00294]
[1756314018415,0.50348,112080.0,112070.0,0.52941977]
[1756314018914,0.14268,112080.0,112070.0,0.52941977]
[1756314019313,0.15140144,112080.0,112070.0,0.52941977]
[1756314019514,0.14268,112080.0,112070.0,0.52941977]
[1756314019712,0.14268,112080.0,112070.0,0.89021977]
[1756314020012,0.08946,112080.0,112070.0,1.72189977]
[1756314020216,0.03266,112080.0,112070.0,1.97189977]
[1756314020416,0.02766,112080.0,112070.0,1.97189977]
[1756314020717,0.03366,112080.0,112070.0,1.97189977]
[1756314021015,0.1616166,112080.0,112070.0,0.77941977]
[1756314021216,0.04983,112080.0,112070.0,1.68279207]
[1756314021417,0.04983,112080.0,112070.0,2.04359207]
[1756314021915,0.03366,112080.0,112070.0,2.04359207]
[1756314022109,0.06857,112080.0,112070.0,2.04359207]
[1756314022311,0.03366,112080.0,112070.0,2.04359207]
[1756314022509,0.03366,112080.0,112070.0,2.48085724]
[1756314022713,0.03366,112080.0,112070.0,2.79085724]
[1756314023007,0.03366,112080.0,112070.0,2.86085724]
[1756314023606,0.03366,112080.0,112070.0,2.04359207]
[1756314023607,0.09572,112080.0,112070.0,2.04359207]
[1756314023816,0.07241,112080.0,112070.0,2.04359207]
[1756314024115,0.04983,112080.0,112070.0,2.04359207]
[1756314024315,0.03366,112080.0,112070.0,2.04359207]
[1756314024615,0.09188,112080.0,112070.0,2.04363207]
[1756314024814,0.03366,112080.0,112070.0,2.04363207]
[1756314025217,0.03366,112080.0,112070.0,2.81089724]
[1756314025418,0.03366,112080.0,112070.0,2.48089724]
[1756314025606,0.03366,112080.0,112070.0,1.6063669]
[1756314025811,0.03366,112080.0,112070.0,2.04363207]
[1756314026314,0.03366,112080.0,112070.0,1.21183207]
[1756314026515,0.03366,112080.0,112070.0,2.04363207]
[1756314026813,0.006,112080.0,112070.0,2.82089724]
[1756314027014,0.006,112080.0,112070.0,2.86089724]
[1756314027513,0.006,112080.0,112070.0,2.82089724]
[1756314027714,0.006,112080.0,112070.0,1.98909724]
[1756314027913,0.006,112080.0,112070.0,2.82085724]
[1756314028111,0.006,112080.0,112070.0,1.98909724]
[1756314028316,0.006,112080.0,112070.0,2.82089724]
[1756314028620,0.02789359,112090.0,112080.0,0.0892066]
[1756314028821,0.02789359,112090.0,112080.0,1.68747694]
[1756314028822,0.05475666,112090.0,112080.0,1.68747694]
[1756314029020,1.55475666,112090.0,112080.0,2.15923694]
[1756314029414,1.55475666,112090.0,112080.0,1.32747694]
[1756314029615,1.61318666,112090.0,112080.0,2.15923694]
[1756314030327,1.61718666,112090.0,112080.0,2.15923694]
[1756314030517,1.67221666,112090.0,112080.0,2.15927694]
[1756314031524,1.76141526,112090.0,112080.0,2.15923694]
[1756314031724,1.76141526,112090.0,112080.0,1.2835766]
[1756314031928,1.76141526,112090.0,112080.0,0.52941177]
[1756314032116,1.67221666,112090.0,112080.0,0.52941177]
[1756314032322,1.76141526,112090.0,112080.0,1.36117177]
[1756314032626,1.76141526,112090.0,112080.0,0.52941177]
[1756314032822,1.76141526,112090.0,112080.0,1.36117177]
[1756314033822,1.67221666,112090.0,112080.0,1.36117177]
[1756314034130,1.67221666,112090.0,112080.0,1.79843694]
[1756314034421,1.76141526,112090.0,112080.0,1.36117177]
[1756314035433,1.76141526,112090.0,112080.0,0.9239066]
[1756314035729,1.76141526,112090.0,112080.0,1.36117177]
[1756314036623,2.37221526,112090.0,112080.0,0.43726517]
[1756314036825,2.37221526,112090.0,112080.0,0.52647177]
[1756314037130,2.01141526,112090.0,112080.0,0.52647177]
[1756314037328,0.2328366,112080.0,112070.0,0.9954404]
[1756314037526,0.25979967,112080.0,112070.0,1.43270557]
[1756314037722,0.17059307,112080.0,112070.0,1.79350557]
[1756314038928,0.17359307,112080.0,112070.0,1.79350557]
[1756314039137,0.17359307,112080.0,112060.0,0.0001]
[1756314039138,1.7328446,112070.0,112060.0,0.0001]
[1756314039430,2.80787284,112070.0,112060.0,0.0001]
[1756314040828,2.80987284,112070.0,112060.0,0.0001]
[1756314041130,2.85793407,112070.0,112050.0,0.01949371]
[1756314041340,0.2328605,112050.0,112040.0,0.05549]
[1756314041633,0.62062357,112050.0,112040.0,0.05549]
[1756314041825,0.61962357,112050.0,112040.0,0.05549]
[1756314042027,0.2328684,112040.0,112030.0,0.88048]
[1756314042334,0.0892502,112030.0,112020.0,1.29638517]
[1756314042531,0.4500422,112040.0,112020.0,1.38563957]
[1756314042724,0.47724657,112040.0,112020.0,0.9483744]
[1756314042927,0.47524657,112040.0,112020.0,0.9483744]
[1756314043129,0.47538016,112040.0,112030.0,0.43726517]
[1756314043629,0.48427905,112040.0,112030.0,0.43726517]
[1756314043823,0.48327905,112040.0,112030.0,0.43726517]
[1756314044527,0.48327905,112040.0,112030.0,0.43826517]
[1756314045635,0.48327905,112040.0,112030.0,0.001]
[1756314045636,0.48427905,112040.0,112030.0,0.001]
[1756314045835,0.48427905,112040.0,112030.0,0.43826517]
[1756314046035,0.48427905,112040.0,112030.0,0.52751157]
[1756314046941,0.48427905,112040.0,112030.0,0.43826517]
[1756314047235,0.58623905,112040.0,112030.0,0.45954517]
[1756314047436,0.62790905,112040.0,112030.0,0.45954517]
[1756314048334,0.62790905,112040.0,112030.0,0.54879147]
[1756314048531,0.63090905,112040.0,112030.0,0.54879147]
[1756314048732,0.54166685,112040.0,112030.0,0.55038147]
[1756314049238,0.53276796,112040.0,112030.0,0.55038147]
[1756314049445,0.09461796,112040.0,112030.0,1.97944664]
[1756314049634,0.07286796,112040.0,112030.0,1.16218147]
[1756314050143,0.05763796,112040.0,112030.0,1.16218147]
[1756314051641,0.05763796,112040.0,112030.0,1.52218147]
[1756314051841,0.05763796,112040.0,112030.0,1.16218147]
[1756314052136,0.05763796,112040.0,112030.0,1.48218147]
[1756314052840,0.05763796,112040.0,112030.0,1.16218147]
[1756314053039,0.05763796,112040.0,112030.0,1.53218147]
[1756314053342,0.02833796,112040.0,112030.0,1.95944664]
[1756314053530,0.02833796,112040.0,112030.0,1.71832367]
[1756314053733,0.02833796,112040.0,112030.0,1.96832367]
[1756314054241,0.02833796,112040.0,112030.0,2.81600664]
[1756314054540,0.02833796,112040.0,112030.0,2.81588664]
[1756314055044,0.02833796,112040.0,112030.0,2.80584664]
[1756314055342,0.02833796,112040.0,112030.0,1.59944664]
[1756314055641,0.05763796,112040.0,112030.0,1.16218147]
[1756314055844,0.08237796,112040.0,112030.0,1.76818147]
[1756314056037,0.02833796,112040.0,112030.0,2.58544664]
[1756314056241,0.05763796,112040.0,112030.0,2.58544664]
[1756314057548,0.02833796,112040.0,112030.0,2.58544664]
[1756314058542,0.02833796,112040.0,112030.0,1.76216664]
[1756314058738,0.05616796,112040.0,112030.0,2.12142147]
[1756314059246,1.52833796,112040.0,112030.0,2.12142147]
[1756314059452,1.55616796,112040.0,112030.0,2.12142147]
[1756314059643,1.55616796,112040.0,112030.0,1.38216664]
[1756314059947,1.55616796,112040.0,112030.0,2.60830664]
[1756314060341,1.52833796,112040.0,112030.0,2.60830664]
[1756314060543,0.0001,112050.0,112040.0,0.0918284]
[1756314060852,0.02793,112060.0,112050.0,0.0918205]
[1756314061040,0.07589123,112060.0,112050.0,2.32590567]
[1756314061241,0.07589123,112060.0,112050.0,1.46998567]
[1756314061446,0.07589123,112060.0,112050.0,2.32582567]
[1756314061642,1.57589123,112060.0,112050.0,2.32582567]
[1756314062151,1.57889123,112060.0,112050.0,2.32582567]
[1756314062641,1.57889123,112060.0,112050.0,1.76606519]
[1756314062851,1.53083,112060.0,112050.0,2.34606519]
[1756314063149,1.505,112060.0,112050.0,2.34606519]
[1756314063750,0.005,112060.0,112050.0,2.40606519]
[1756314064150,1.54816123,112070.0,112060.0,0.0908125]
[1756314064349,1.54816123,112070.0,112060.0,1.43997767]
[1756314064350,1.54806123,112070.0,112060.0,1.43997767]
[1756314064548,1.54806123,112070.0,112060.0,2.29481767]
[1756314064851,0.04806123,112070.0,112060.0,2.29481767]
[1756314065448,0.05006123,112070.0,112060.0,2.29481767]
[1756314065751,0.05006123,112070.0,112060.0,1.21997767]
[1756314065947,0.09366123,112070.0,112060.0,0.88997767]
[1756314066157,0.17302123,112070.0,112060.0,1.74457767]
[1756314066746,0.17302123,112070.0,112060.0,0.88997767]
[1756314066953,0.19219123,112070.0,112060.0,1.74349767]
[1756314067247,0.19519123,112070.0,112060.0,1.74349767]
[1756314069251,0.19519123,112070.0,112060.0,0.88897767]
[1756314069454,0.9716709,112070.0,112060.0,1.3038025]
[1756314069653,0.53440573,112070.0,112060.0,1.3038025]
[1756314069848,0.19519123,112070.0,112060.0,1.74106767]
[1756314070449,0.16138123,112070.0,112060.0,1.74206767]
[1756314070654,0.09666123,112070.0,112060.0,1.74206767]
[1756314070855,1.59666123,112070.0,112060.0,1.74206767]
[1756314071458,1.53283,112070.0,112060.0,2.10254767]
[1756314071658,1.53083,112070.0,112060.0,0.88997767]
[1756314071954,1.64613,112070.0,112060.0,0.88997767]
[1756314072160,1.64613,112070.0,112060.0,1.74333767]
[1756314072660,1.67260082,112070.0,112060.0,0.4501225]
[1756314072852,2.44908049,112070.0,112060.0,1.3044025]
[1756314073047,2.44908049,112070.0,112060.0,0.4501225]
[1756314073254,2.78340967,112070.0,112060.0,0.0893225]
[1756314073462,2.80987835,112070.0,112060.0,0.9439625]
[1756314073862,2.80887835,112070.0,112060.0,0.9439625]
[1756314074358,2.78240967,112070.0,112060.0,0.9439625]
[1756314074558,2.00593,112070.0,112060.0,0.9439625]
[1756314074761,2.00593,112070.0,112060.0,0.9455525]
[1756314074961,1.64513,112070.0,112060.0,0.9455525]
[1756314075865,1.64513,112070.0,112060.0,0.9439625]
[1756314077263,1.64513,112070.0,112060.0,1.38122767]
[1756314079270,1.64513,112070.0,112060.0,0.9455525]
[1756314079769,1.64513,112070.0,112060.0,1.38281767]
[1756314080371,1.64513,112070.0,112060.0,0.9455525]
[1756314080570,1.64513,112070.0,112060.0,1.38281767]
[1756314080770,1.64513,112070.0,112060.0,1.38122767]
[1756314081071,0.14513,112070.0,112060.0,1.74202767]
[1756314081465,0.14513,112070.0,112060.0,1.74302767]
[1756314082576,0.14513,112070.0,112060.0,1.74202767]
[1756314082776,0.14513,112070.0,112060.0,1.74302767]
[1756314084777,0.003,112070.0,112060.0,2.36302767]
[1756314085169,0.002,112070.0,112060.0,2.55302767]
[1756314086081,0.002,112070.0,112060.0,1.0711225]
[1756314086384,0.002,112070.0,112060.0,2.36438767]
[1756314086980,0.02783,112070.0,112060.0,2.36538767]
[1756314087174,0.02783,112070.0,112060.0,1.74714767]
[1756314087374,0.07741,112070.0,112060.0,1.74826767]
[1756314087580,0.07741,112070.0,112060.0,1.74626767]
[1756314087780,0.02883,112070.0,112060.0,2.16526767]
[1756314087981,0.02883,112070.0,112060.0,2.18526767]
[1756314088681,0.001,112070.0,112060.0,2.43526767]
[1756314088981,0.02968,112070.0,112060.0,2.43526767]
[1756314089985,0.02968,112070.0,112060.0,2.43626767]
[1756314090377,0.001,112070.0,112060.0,2.43626767]
[1756314090682,0.1091,112070.0,112060.0,1.74406767]
[1756314090885,0.14185,112070.0,112060.0,1.74406767]
[1756314092082,0.02968,112070.0,112060.0,1.74406767]
[1756314092387,0.02968,112070.0,112060.0,2.16406767]
[1756314092987,0.02968,112070.0,112060.0,2.16506767]
[1756314093587,0.001,112070.0,112060.0,2.16506767]
[1756314093788,0.001,112070.0,112060.0,2.16406767]
[1756314093990,0.02968,112070.0,112060.0,1.74406767]
[1756314094291,0.02968,112070.0,112060.0,2.12378767]
[1756314094491,0.02968,112070.0,112060.0,2.12478767]
[1756314095289,0.02968,112070.0,112060.0,1.8875225]
[1756314095485,0.1091,112070.0,112060.0,0.88838767]
[1756314095689,0.14185,112070.0,112060.0,0.88838767]
[1756314096094,0.14185,112070.0,112060.0,1.74394767]
[1756314096592,0.14185,112070.0,112060.0,1.74294767]
[1756314097186,0.39185,112070.0,112060.0,1.74286767]
[1756314097885,0.39185,112070.0,112060.0,0.88738767]
[1756314098092,0.39185,112070.0,112060.0,0.9446825]
[1756314098286,0.39185,112070.0,112060.0,1.38194767]
[1756314098287,0.39285,112070.0,112060.0,1.38194767]
[1756314098582,0.39385,112070.0,112060.0,1.38194767]
[1756314099295,0.39385,112070.0,112060.0,1.74274767]
[1756314099692,0.83111517,112070.0,112060.0,0.4501225]
[1756314099893,1.28212967,112070.0,112060.0,0.0001]
[1756314100087,1.28312967,112070.0,112060.0,0.86066]
[1756314100288,1.28312967,112070.0,112060.0,0.0001]
[1756314100488,1.28312967,112070.0,112060.0,0.86066]
[1756314101197,0.39585,112070.0,112060.0,0.9498825]
[1756314101395,0.4850645,112070.0,112060.0,0.9498825]
[1756314101999,0.6330645,112070.0,112060.0,0.9498825]
[1756314102199,0.4850645,112070.0,112060.0,0.9498825]
[1756314103193,1.28312967,112070.0,112060.0,0.9498825]
[1756314103389,0.8458645,112070.0,112060.0,0.9498825]
[1756314103794,1.28312967,112070.0,112060.0,0.9498825]
[1756314104801,1.28312967,112070.0,112060.0,0.9486825]
[1756314106600,0.8458645,112070.0,112060.0,0.9486825]
[1756314107205,0.8468645,112070.0,112060.0,0.9486825]
[1756314107405,0.8478645,112070.0,112060.0,0.9486825]
[1756314109907,1.28512967,112070.0,112060.0,0.9486825]
[1756314112207,1.43312967,112070.0,112060.0,0.9486825]
[1756314113210,1.18312967,112070.0,112060.0,0.9486825]
[1756314114097,0.7458645,112070.0,112060.0,0.9486825]
[1756314115005,0.7428645,112070.0,112060.0,0.9486825]
[1756314115303,0.04623,112070.0,112060.0,1.99674767]
[1756314115508,0.10153,112070.0,112060.0,1.99674767]
[1756314116110,0.10053,112070.0,112060.0,1.99674767]
[1756314116305,0.10153,112070.0,112060.0,1.99674767]
[1756314116705,0.10353,112070.0,112060.0,1.99674767]
[1756314117199,0.10153,112070.0,112060.0,1.99674767]
[1756314117408,0.14285,112070.0,112060.0,0.7001225]
[1756314117711,0.14285,112070.0,112060.0,1.63114767]
[1756314117913,0.1993145,112070.0,112060.0,1.63114767]
[1756314118108,0.2320645,112070.0,112060.0,1.63114767]
[1756314118309,0.2320645,112070.0,112060.0,1.63098767]
[1756314118506,0.2310645,112070.0,112060.0,1.63098767]
[1756314119313,0.2320645,112070.0,112060.0,1.63098767]
[1756314119714,0.14285,112070.0,112060.0,1.63098767]
[1756314119910,0.1203,112070.0,112060.0,1.63098767]
[1756314120110,0.14512,112070.0,112060.0,1.63098767]
[1756314120306,0.14512,112070.0,112060.0,1.1937225]
[1756314120506,0.14512,112070.0,112060.0,0.77658767]
[1756314120702,0.14512,112070.0,112060.0,1.63054767]
[1756314120914,0.14512,112070.0,112060.0,0.77658767]
[1756314121117,0.14512,112070.0,112060.0,1.63054767]
[1756314121311,0.2343345,112070.0,112060.0,1.63054767]
[1756314122010,0.2343345,112070.0,112060.0,0.77658767]
[1756314122215,0.2343345,112070.0,112060.0,0.9436825]
[1756314122411,0.2343345,112070.0,112060.0,1.38094767]
[1756314122611,0.14512,112070.0,112060.0,1.38094767]
[1756314124517,0.03068,112070.0,112060.0,1.74174767]
[1756314124725,0.03068,112070.0,112060.0,2.33174767]
[1756314125111,0.002,112070.0,112060.0,1.13738767]
[1756314125417,0.002,112070.0,112060.0,1.99170767]
[1756314125816,0.03018,112070.0,112060.0,1.99158767]
[1756314126017,0.001,112070.0,112060.0,1.99158767]
[1756314126212,0.02918,112070.0,112060.0,1.99158767]